bitfinex/quotes_ETHUSD_20250807
["timestamp","ask_amount","ask_price","bid_price","bid_amount"]
[1754562626980,1.6989,3812.9,3812.8,0.5]
[1754562627189,1.6989,3812.9,3812.8,4.912]
[1754562627377,4.32157565,3812.9,3812.8,0.5]
[1754562627578,1.6989,3812.9,3812.3,4.413]
[1754562627779,2.62301962,3812.4,3812.3,4.413]
[1754562627999,1.6969,3812.4,3811.4,6.50637312]
[1754562628165,14.5,3812.3,3811.5,5.06363731]
[1754562628369,1.6969,3812.2,3811.5,0.65063731]
[1754562628579,1.6969,3812.2,3811.6,4.412]
[1754562628902,1.6969,3812.1,3810.2,1.2211]
[1754562629113,1.6969,3812.0,3810.3,4.412]
[1754562629310,14.5,3812.2,3810.4,4.412]
[1754562629311,2.62378264,3811.3,3810.4,4.412]
[1754562629467,1.6969,3811.2,3810.4,4.412]
[1754562629718,1.6969,3811.2,3809.9,4.411]
[1754562629719,1.71796902,3811.1,3809.9,4.411]
[1754562629921,16.1969,3811.0,3809.9,4.411]
[1754562630153,2.62461606,3810.1,3809.9,4.411]
[1754562630353,1.6969,3810.0,3809.9,4.414]
[1754562630558,1.6969,3810.0,3808.7,1.11966724]
[1754562630718,1.6969,3809.9,3808.8,4.413]
[1754562631156,3.87471359,3809.8,3808.8,4.413]
[1754562631356,1.6969,3809.7,3808.9,0.4413]
[1754562631556,1.6969,3809.6,3808.9,0.4413]
[1754562631742,4.415,3810.3,3808.9,3.06666298]
[1754562631743,2.62471977,3810.0,3808.9,3.06666298]
[1754562632060,1.6969,3810.4,3809.0,0.8700763]
[1754562632061,1.2499,3810.2,3809.0,0.8700763]
[1754562632357,1.6969,3810.2,3809.0,0.8700763]
[1754562632556,2.62494028,3809.7,3809.0,0.8700763]
[1754562632756,14.5,3810.4,3808.8,4.413]
[1754562632757,1.6969,3809.6,3808.8,4.413]
[1754562633535,0.447,3809.6,3808.8,4.413]
[1754562633732,14.5,3810.4,3809.4,0.55]
[1754562633937,2.62418978,3810.7,3809.6,3.0]
[1754562634146,0.447,3810.8,3809.8,2.62480123]
[1754562634434,0.447,3810.8,3809.7,1.2211]
[1754562634636,0.447,3810.8,3809.3,9.27026322]
[1754562634637,2.62426931,3810.6,3809.8,4.426]
[1754562634831,1.2499,3810.7,3809.9,4.426]
[1754562635037,1.2499,3811.2,3810.0,3.77939092]
[1754562635261,1.2499,3811.2,3810.6,0.1312]
[1754562635465,0.002,3810.8,3810.6,4.426]
[1754562635671,0.002,3810.8,3810.7,0.1312]
[1754562637144,0.788356,3813.5,3810.7,0.1312]
[1754562637145,0.002,3812.9,3811.4,3.0]
[1754562637356,2.62321323,3812.2,3811.5,4.66978778]
[1754562637561,2.62321323,3812.2,3811.0,3.0]
[1754562637562,14.5,3812.1,3811.6,4.6697394]
[1754562637764,2.62336367,3811.9,3811.7,0.22975122]
[1754562638082,1.6969,3812.0,3811.7,0.22975122]
[1754562638285,4.32033249,3811.8,3811.7,0.22975122]
[1754562638470,2.62383519,3811.3,3810.6,0.22975122]
[1754562638674,2.62383519,3811.3,3810.7,4.439]
[1754562638976,1.6969,3811.3,3810.8,0.23008244]
[1754562639341,1.6969,3811.2,3810.9,0.23008244]
[1754562639641,1.6969,3811.2,3811.0,0.23008244]
[1754562639837,2.62343249,3811.8,3811.1,0.23044094]
[1754562640062,2.62343249,3811.8,3811.2,0.23044094]
[1754562640236,1.2499,3811.7,3811.3,0.23044094]
[1754562640440,4.32040241,3811.7,3811.4,0.23044094]
[1754562640639,2.62321254,3812.2,3811.5,0.23076884]
[1754562640836,2.62373423,3811.4,3810.7,4.437]
[1754562641040,0.002,3812.9,3811.0,9.27026322]
[1754562641343,0.002,3812.9,3811.5,0.55]
[1754562641544,0.002,3812.9,3811.6,0.23072037]
[1754562641886,2.62274534,3812.8,3811.8,5.62343249]
[1754562642040,0.002,3812.9,3812.0,3.0]
[1754562642041,14.5,3812.1,3812.0,3.0]
[1754562642246,14.5,3812.1,3812.0,0.23082785]
[1754562642480,14.5,3812.1,3812.0,4.66682785]
[1754562642637,0.002,3812.9,3812.1,0.55]
[1754562642953,0.002,3812.9,3812.8,5.62274443]
[1754562643158,0.002,3812.9,3812.8,10.29757228]
[1754562643389,0.002,3812.9,3812.8,11.51867228]
[1754562643892,0.002,3812.9,3812.8,8.89592785]
[1754562644097,0.11545931,3814.9,3812.8,8.82170127]
[1754562644256,1e-08,3815.0,3814.9,3.55]
[1754562644439,1e-08,3815.0,3814.9,12.64594153]
[1754562644751,1e-08,3815.0,3814.9,14.63865353]
[1754562644953,1e-08,3815.0,3814.9,14.75210353]
[1754562645340,1e-08,3815.0,3814.9,10.21510353]
[1754562645583,1e-08,3815.0,3814.9,12.82034217]
[1754562645791,1e-08,3815.0,3814.9,5.19754149]
[1754562646004,1e-08,3815.0,3814.9,12.81934217]
[1754562646293,1e-08,3815.0,3814.9,12.82034217]
[1754562646471,14.5,3815.9,3815.8,3.0]
[1754562646635,1.6969,3816.9,3815.8,5.7641]
[1754562646840,0.43168213,3816.8,3816.3,2.62033713]
[1754562647053,14.5,3816.8,3816.7,3.17006445]
[1754562647256,4.94518717,3817.4,3816.8,0.55]
[1754562647257,0.47642529,3817.3,3816.8,0.55]
[1754562647479,0.47642529,3817.3,3817.2,2.61972126]
[1754562647778,0.47642529,3817.3,3817.2,4.9023]
[1754562647977,0.47642529,3817.3,3817.2,16.21489926]
[1754562648179,0.47642529,3817.3,3817.2,16.99350428]
[1754562648406,0.47642529,3817.3,3817.2,10.79900428]
[1754562648608,0.47642529,3817.3,3817.2,17.65349828]
[1754562648783,0.47642529,3817.3,3817.2,13.15300428]
[1754562648978,0.47642529,3817.3,3817.2,8.05022428]
[1754562649180,0.47642529,3817.3,3817.2,3.19390302]
[1754562649381,0.47642529,3817.3,3817.2,2.996]
[1754562649589,0.47642529,3817.3,3817.2,16.72994126]
[1754562649788,0.47642529,3817.3,3817.2,11.95982126]
[1754562649988,0.47642529,3817.3,3817.2,12.61782816]
[1754562650313,0.47642529,3817.3,3817.2,9.56859327]
[1754562650516,0.47642529,3817.3,3817.2,10.38022816]
[1754562650720,0.47642529,3817.3,3817.2,11.73182816]
[1754562651008,0.47642529,3817.3,3817.2,3.1885069]
[1754562651207,0.47642529,3817.3,3816.1,6.298]
[1754562651384,0.47642529,3817.3,3816.4,2.62023162]
[1754562651578,0.47642529,3817.3,3816.0,7.6496]
[1754562651793,14.5,3817.2,3816.1,2.75858301]
[1754562652153,14.5,3817.2,3816.2,4.71111612]
[1754562652284,1.8172,3817.1,3816.0,6.298]
[1754562652606,3.49656253,3817.0,3816.0,6.298]
[1754562652806,2.62036162,3816.3,3816.0,6.298]
[1754562653106,2.62053911,3816.1,3815.9,4.57]
[1754562653306,1.8172,3816.0,3814.6,6.297]
[1754562653511,1.8172,3815.9,3814.9,2.62124388]
[1754562653712,4.43784514,3815.9,3815.0,0.13791584]
[1754562654010,16.3172,3815.8,3815.1,0.13791584]
[1754562654213,16.3172,3815.8,3815.3,3.0]
[1754562654214,14.943,3815.8,3815.3,3.0]
[1754562654371,1.3742,3816.4,3815.4,1.48951584]
[1754562654575,1.3742,3816.4,3815.6,3.0]
[1754562654775,14.5,3816.3,3815.7,4.08957471]
[1754562654977,14.5,3816.3,3816.0,2.62051394]
[1754562655214,14.5,3816.3,3815.8,3.0]
[1754562655215,10.5,3816.3,3816.1,4.565]
[1754562655713,10.5,3816.3,3815.3,0.3]
[1754562655916,10.5,3816.3,3814.8,2.62132095]
[1754562656123,10.5,3816.3,3815.0,3.0]
[1754562656423,10.5,3816.3,3815.3,3.0]
[1754562656424,1.8172,3816.2,3815.3,3.0]
[1754562656623,3.12922077,3816.2,3815.4,4.562]
[1754562656819,3.12922077,3816.2,3815.3,3.0]
[1754562657115,3.12922077,3816.2,3815.4,4.56]
[1754562657521,10.5,3816.3,3815.8,2.62067478]
[1754562657683,10.5,3816.3,3815.3,0.55]
[1754562657684,10.5,3816.3,3816.2,2.62040773]
[1754562657884,4.94518717,3817.4,3816.2,2.62040773]
[1754562657885,4.94518717,3817.4,3816.5,5.62013573]
[1754562658122,4.43685402,3817.3,3816.2,0.1312]
[1754562658322,4.94518717,3817.4,3817.2,0.1312]
[1754562658496,1.8172,3817.3,3817.2,0.1312]
[1754562658696,4.45792165,3817.3,3817.2,4.558]
[1754562658899,16.3172,3817.3,3817.1,0.1312]
[1754562659222,14.5,3817.3,3817.2,4.556]
[1754562659411,16.44451872,3817.3,3817.2,4.556]
[1754562659594,19.50717135,3817.3,3817.2,4.554]
[1754562659796,18.26171872,3817.3,3817.1,0.1312]
[1754562660021,1.8172,3817.2,3817.1,0.1312]
[1754562660320,2.62034434,3816.3,3816.2,4.551]
[1754562660526,1.8172,3816.3,3816.2,4.551]
[1754562660683,14.5,3816.3,3816.2,4.551]
[1754562660985,14.5,3816.3,3814.8,6.296]
[1754562660986,0.1,3814.0,3811.0,2.26172905]
[1754562661191,0.1,3814.0,3811.1,0.36363006]
[1754562661192,0.55,3813.5,3811.1,0.36363006]
[1754562661387,0.443,3816.0,3815.4,2.62090842]
[1754562661648,3.326,3815.6,3815.2,3.1471608]
[1754562661857,4.43809022,3815.5,3814.8,0.1]
[1754562662135,4.43809022,3815.5,3813.8,0.02622056]
[1754562662136,0.443,3815.5,3813.8,0.02622056]
[1754562662288,6.4452,3815.4,3813.4,0.1]
[1754562662490,1.8172,3815.3,3813.1,0.1]
[1754562662787,19.639,3815.2,3813.4,0.1]
[1754562662986,2.62130068,3814.9,3813.2,0.1]
[1754562663197,2.62130068,3814.9,3812.7,0.63798288]
[1754562663198,2.62219971,3813.6,3812.9,0.1]
[1754562663426,0.443,3813.7,3812.7,0.63798288]
[1754562663619,2.62310203,3812.3,3811.9,0.1]
[1754562663913,2.62310203,3812.3,3811.8,5.141]
[1754562663914,1.3742,3812.3,3811.5,0.1]
[1754562664108,1.3742,3812.9,3812.0,0.1]
[1754562664323,2.62296183,3812.5,3812.1,0.1]
[1754562664523,2.62219425,3813.6,3812.4,0.1]
[1754562664740,2.6238455,3811.2,3811.1,1.14632405]
[1754562664957,3.0668455,3811.2,3811.1,0.13835291]
[1754562665109,1.8172,3811.2,3810.7,0.1]
[1754562665307,14.5,3812.2,3810.7,0.1]
[1754562665308,0.443,3811.1,3810.7,0.1]
[1754562665541,0.443,3811.7,3811.1,0.1]
[1754562665742,0.443,3811.7,3810.0,1.3516]
[1754562665743,0.443,3812.1,3811.0,5.248]
[1754562665919,0.443,3812.1,3810.5,1.3516]
[1754562665920,3.06652229,3811.7,3811.4,0.1]
[1754562666343,0.443,3811.6,3810.8,0.1]
[1754562666531,2.6239832,3811.0,3810.9,0.13860744]
[1754562666711,1.8172,3811.0,3810.5,0.1]
[1754562666908,2.62413827,3810.8,3810.6,0.13867499]
[1754562667118,2.62418978,3810.7,3810.6,0.13867499]
[1754562667350,0.443,3816.7,3810.7,30.0]
[1754562667548,0.98409747,3815.6,3814.3,0.1]
[1754562667759,0.98409747,3815.6,3815.5,0.1]
[1754562667963,0.7804675,3815.6,3815.5,0.1]
[1754562668269,1.3762,3816.8,3816.4,0.1]
[1754562668270,0.002,3816.8,3816.4,0.1]
[1754562668548,0.002,3816.8,3816.5,2.78983211]
[1754562668549,0.445,3816.8,3816.5,2.78983211]
[1754562668843,0.445,3816.8,3815.3,5.569]
[1754562668844,0.002,3816.8,3816.7,0.1]
[1754562669060,0.002,3816.8,3816.7,2.88983211]
[1754562669209,0.002,3816.8,3816.7,2.88986935]
[1754562669843,3.32718374,3816.8,3816.7,2.5594]
[1754562670018,2.6204979,3816.1,3816.0,0.1]
[1754562670219,4.70138374,3816.8,3814.6,1.3516]
[1754562670220,2.62081979,3815.6,3815.5,2.5594]
[1754562670516,2.62081979,3815.6,3815.1,2.5594]
[1754562670517,2.07928198,3815.6,3815.1,2.5594]
[1754562670815,0.443,3815.5,3814.9,2.5594]
[1754562671026,0.5742,3815.5,3815.0,0.1312]
[1754562671332,2.62109456,3815.2,3815.1,2.5594]
[1754562671564,3.64571973,3815.2,3815.1,2.5594]
[1754562671757,2.62123197,3815.0,3814.9,0.1312]
[1754562672059,2.62143812,3814.7,3814.6,2.5594]
[1754562672220,2.62164429,3814.4,3814.3,0.1312]
[1754562672425,2.62164429,3814.4,3814.3,2.6906]
[1754562672762,2.62164429,3814.4,3809.8,1.38708687]
[1754562672763,3.55,3814.2,3810.3,1.3516]
[1754562672976,3.55,3813.2,3810.7,0.2318734]
[1754562673190,2.62336207,3812.0,3810.8,0.2318734]
[1754562673473,2.62336207,3812.0,3810.9,0.23211291]
[1754562673474,2.62357466,3811.6,3810.9,0.23211291]
[1754562673626,0.26233621,3811.9,3811.0,0.23211291]
[1754562673825,2.62385772,3811.2,3811.1,0.23198336]
[1754562674069,2.62385772,3811.2,3810.4,5.621]
[1754562674070,2.62396084,3811.1,3810.5,0.23201057]
[1754562674272,2.62384874,3811.2,3810.5,0.23202785]
[1754562674426,2.62375452,3811.4,3810.5,0.23202785]
[1754562674627,0.47028294,3811.8,3810.5,0.23202785]
[1754562674856,0.47028294,3811.8,3810.3,1.3516]
[1754562674857,0.26233621,3811.9,3810.4,0.23202785]
[1754562675169,2.62372724,3811.4,3810.4,0.23202785]
[1754562675340,2.62377733,3811.3,3810.4,0.23202785]
[1754562675673,2.62357255,3811.6,3810.4,0.23202785]
[1754562675981,0.26233621,3811.9,3810.4,3.23202785]
[1754562676129,2.62309668,3812.3,3810.9,3.0]
[1754562676333,4.44008778,3812.6,3810.8,3.0]
[1754562676644,0.18172,3812.5,3810.9,5.592]
[1754562676851,2.62335922,3812.0,3810.9,5.592]
[1754562677176,2.62321428,3812.2,3810.9,5.592]
[1754562677383,2.82291827,3812.4,3811.0,1.331207]
[1754562677534,2.62324633,3812.1,3811.0,1.331207]
[1754562677735,0.199892,3812.4,3811.0,1.331207]
[1754562677736,2.62339745,3811.9,3811.0,1.331207]
[1754562677950,2.62330766,3812.0,3811.0,1.331207]
[1754562678243,2.62330256,3812.0,3811.0,1.331207]
[1754562678663,2.62337395,3811.9,3811.0,1.331207]
[1754562678866,0.2198812,3812.3,3811.0,1.331207]
[1754562678867,2.62314458,3812.3,3811.1,2.62390483]
[1754562679089,2.62323786,3812.1,3811.0,1.331207]
[1754562679237,2.62267565,3812.9,3811.1,5.558]
[1754562679456,2.62328115,3812.1,3811.1,5.558]
[1754562679663,0.44398757,3812.8,3811.1,5.558]
[1754562679846,2.62281322,3812.7,3811.1,5.558]
[1754562680059,2.62332364,3812.0,3811.2,5.552]
[1754562680433,2.62314122,3812.3,3811.2,5.552]
[1754562680680,2.62331948,3812.0,3811.2,5.552]
[1754562680888,0.44136412,3812.3,3811.2,5.552]
[1754562681191,2.62336462,3811.9,3811.2,5.552]
[1754562681393,2.62315723,3812.2,3811.2,5.552]
[1754562681555,1.7905,3812.3,3811.2,5.552]
[1754562681556,2.6232539,3812.1,3811.2,5.552]
[1754562681882,2.62329485,3812.0,3810.9,5.531]
[1754562682187,2.6236439,3811.5,3810.6,5.53]
[1754562682488,2.6234424,3811.8,3810.7,5.62412936]
[1754562682650,2.62355098,3811.7,3810.7,3.0]
[1754562682837,2.62369835,3811.5,3811.2,0.1312]
[1754562683033,0.1312,3811.8,3811.2,0.1312]
[1754562683364,1.3607,3811.7,3810.6,5.524]
[1754562683686,2.62399614,3811.0,3810.9,0.1312]
[1754562683981,2.62399614,3811.0,3810.6,0.001]
[1754562683982,2.62418978,3810.7,3810.6,0.001]
[1754562684741,1.9217,3811.1,3810.6,0.001]
[1754562684936,2.62344035,3811.8,3810.6,0.001]
[1754562684937,1.7905,3811.8,3810.6,0.001]
[1754562685141,2.62358732,3811.6,3811.0,0.1312]
[1754562685337,2.62351975,3811.7,3811.2,0.1312]
[1754562685837,2.62350132,3811.7,3811.2,0.1312]
[1754562686070,0.3354715,3811.8,3811.2,0.1312]
[1754562686374,0.3354715,3811.8,3810.7,3.0]
[1754562686375,2.62383085,3811.3,3810.7,3.0]
[1754562686675,2.62383085,3811.3,3811.1,0.1312]
[1754562687039,2.6238455,3811.2,3811.1,0.1312]
[1754562687254,2.6238455,3811.2,3810.6,0.001]
[1754562687255,2.62390241,3811.2,3810.9,0.1312]
[1754562687453,2.62390202,3811.2,3810.9,0.1312]
[1754562687658,2.75491107,3811.4,3810.9,0.1312]
[1754562687858,0.1312,3811.4,3810.9,0.1312]
[1754562688055,0.1312,3811.6,3810.6,2.62522316]
[1754562688378,2.62350445,3811.7,3811.2,0.1312]
[1754562688556,2.62345293,3811.8,3811.3,0.2324565]
[1754562688970,2.6235152,3811.7,3811.3,0.2324565]
[1754562689167,2.62355873,3811.7,3811.4,0.2324565]
[1754562689346,2.62355873,3811.7,3811.5,0.2324565]
[1754562689542,2.62355873,3811.7,3811.2,0.1312]
[1754562689543,2.62355873,3811.7,3811.6,0.2324565]
[1754562689764,4.7147561,3811.7,3811.6,0.2324565]
[1754562689965,4.8459561,3811.7,3811.6,0.2324565]
[1754562690165,3.4852561,3811.7,3811.6,0.2324565]
[1754562690365,2.62372702,3811.4,3811.1,0.1312]
[1754562690579,0.86169737,3811.7,3811.1,0.1312]
[1754562690744,2.62378791,3811.3,3811.0,0.1312]
[1754562690940,1.63619879,3811.3,3811.0,0.1312]
[1754562691245,2.89929621,3811.3,3811.0,0.1312]
[1754562691474,2.62384954,3811.2,3811.0,0.1312]
[1754562691982,2.62418978,3810.7,3810.6,0.001]
[1754562693583,4.41468978,3810.7,3810.6,0.001]
[1754562693784,4.54588978,3810.7,3810.6,0.001]
[1754562694083,5.26289085,3810.7,3810.6,0.001]
[1754562694581,2.50750107,3810.7,3809.4,0.001]
[1754562694745,2.6250164,3809.5,3809.4,0.001]
[1754562696185,20.3388,3810.1,3809.4,0.001]
[1754562696374,4.4155164,3809.5,3809.4,0.001]
[1754562696568,2.62529206,3809.1,3809.0,0.001]
[1754562696882,2.62529206,3809.1,3808.1,0.23294121]
[1754562696883,2.62536098,3809.0,3808.1,0.23294121]
[1754562697083,2.62590859,3808.3,3807.6,1.3249]
[1754562697243,2.62577119,3808.5,3807.7,0.23304428]
[1754562697449,5.397,3809.1,3807.6,1.3249]
[1754562697751,5.397,3809.1,3807.7,0.23282793]
[1754562697752,2.62560704,3808.7,3807.7,0.23282793]
[1754562697952,2.62551188,3808.8,3807.7,0.23282793]
[1754562698153,0.80222012,3809.0,3807.7,0.23282793]
[1754562698468,2.62598899,3808.1,3807.2,0.001]
[1754562698990,0.4298,3810.5,3807.3,1.7732]
[1754562699145,1.3607,3810.6,3807.4,5.65409356]
[1754562699146,1.3607,3810.4,3807.4,5.65409356]
[1754562699347,2.62503431,3809.5,3807.9,3.0]
[1754562699541,2.62446526,3810.3,3808.0,2.00605392]
[1754562699782,0.13607,3810.5,3808.1,4.55775392]
[1754562699783,7.2205,3810.2,3808.1,4.55775392]
[1754562700083,2.51255,3810.1,3808.4,3.0]
[1754562700380,2.6248097,3809.8,3808.5,2.00643632]
[1754562700584,14.5,3810.1,3808.6,1.55813632]
[1754562700754,2.62488631,3809.7,3808.7,3.23323632]
[1754562701084,0.735257,3810.2,3808.8,2.32134194]
[1754562701272,0.735257,3810.2,3808.9,0.23323632]
[1754562701645,5.62398658,3811.0,3808.9,0.23323632]
[1754562701646,1.7905,3811.0,3809.1,2.6252408]
[1754562701963,8.92893396,3811.1,3809.2,0.23323632]
[1754562702290,1.7905,3810.9,3809.2,0.23323632]
[1754562702581,14.5,3811.0,3809.0,1.7732]
[1754562702582,2.62501787,3809.5,3809.3,0.23323632]
[1754562702767,1.7905,3810.8,3809.4,0.23323632]
[1754562702768,5.414,3810.4,3809.4,0.23323632]
[1754562702968,2.6249475,3809.6,3809.5,0.23380817]
[1754562703273,2.62427441,3810.6,3808.9,1.3249]
[1754562703468,2.62493022,3809.7,3809.0,0.68210817]
[1754562703669,0.4298,3810.4,3809.1,0.23380817]
[1754562703978,2.62506535,3809.5,3809.2,0.23380817]
[1754562704185,2.62508531,3809.4,3809.3,0.23380817]
[1754562704700,1.3607,3810.0,3809.3,0.233771]
[1754562704917,2.62493271,3809.7,3809.4,0.233771]
[1754562705119,2.62495828,3809.6,3809.5,0.23370948]
[1754562705323,0.4298,3810.0,3809.5,0.23373969]
[1754562705533,2.62487859,3809.7,3809.6,0.23373969]
[1754562705729,2.62522598,3809.2,3808.7,1.3249]
[1754562705892,2.62522598,3809.2,3808.8,0.23373215]
[1754562706092,2.62495153,3809.6,3808.9,0.23373215]
[1754562706293,2.6249475,3809.6,3809.0,0.23373215]
[1754562706620,2.62522314,3809.2,3809.1,0.23373215]
[1754562706821,0.87134475,3809.6,3809.1,0.23373215]
[1754562707026,2.62515422,3809.3,3809.2,0.23373215]
[1754562707202,0.4298,3809.5,3809.2,0.23373215]
[1754562707399,1.3607,3809.4,3808.3,3.0]
[1754562707607,2.62528105,3809.2,3808.4,2.14188162]
[1754562707924,2.62530818,3809.1,3808.5,0.23376935]
[1754562708142,2.62556777,3808.7,3808.6,0.23376935]
[1754562708321,2.62556777,3808.7,3808.2,6.305]
[1754562708322,2.6257746,3808.4,3807.7,1.3249]
[1754562708524,2.6257746,3808.4,3807.8,0.23384125]
[1754562708525,2.62581283,3808.4,3807.8,0.23384125]
[1754562708728,1.7905,3808.7,3807.9,0.23384125]
[1754562708914,2.62598146,3808.1,3807.3,5.356]
[1754562709119,14.5,3809.2,3808.0,0.23489066]
[1754562709328,1.7905,3809.5,3808.1,0.23389066]
[1754562709529,2.62549363,3808.9,3808.2,0.23389066]
[1754562709704,2.62549363,3808.9,3808.3,0.23373561]
[1754562709906,16.2905,3809.5,3808.4,0.23373561]
[1754562710105,1.31148239,3812.6,3808.4,0.23373561]
[1754562710106,5.345,3810.3,3808.5,0.23373561]
[1754562710308,0.4542,3810.8,3809.1,2.62524279]
[1754562710617,0.4542,3810.8,3809.2,2.09513561]
[1754562710816,2.62472025,3810.0,3809.3,0.44324917]
[1754562711056,5.8486086,3810.7,3809.8,3.0]
[1754562711057,2.6242149,3810.7,3809.8,3.0]
[1754562711258,2.75519586,3811.0,3810.0,2.62460874]
[1754562711421,5.342,3812.0,3810.1,1.63156501]
[1754562711422,14.5,3811.9,3810.1,1.63156501]
[1754562711622,2.75493842,3811.4,3810.8,0.1312]
[1754562711947,2.62379536,3811.3,3810.9,0.23356501]
[1754562712157,2.62404893,3811.0,3810.8,0.1312]
[1754562712447,2.75491278,3811.4,3810.9,0.23348373]
[1754562712612,0.1312,3811.4,3810.9,0.23348373]
[1754562712939,4.67576952,3811.4,3810.9,0.23348373]
[1754562713137,2.75491268,3811.4,3810.9,0.23348373]
[1754562713341,2.75492904,3811.4,3810.9,0.23348373]
[1754562713567,1.87329127,3811.4,3810.8,0.1312]
[1754562713710,3.07797666,3811.3,3810.8,0.1312]
[1754562713905,2.62392227,3811.1,3810.8,0.1312]
[1754562714306,0.75751902,3811.1,3808.9,3.0]
[1754562714602,2.62423909,3810.7,3810.5,0.1312]
[1754562714826,2.62399331,3811.0,3810.5,0.1312]
[1754562715025,2.62407341,3810.9,3810.5,0.1312]
[1754562715239,2.62425864,3810.6,3810.5,0.1312]
[1754562716004,2.62420208,3810.7,3810.3,0.1312]
[1754562716236,2.62420208,3810.7,3810.4,0.23380444]
[1754562716438,3.20946032,3810.9,3810.4,0.23380444]
[1754562716439,0.1312,3810.9,3810.4,0.23380444]
[1754562716644,2.62393233,3811.1,3810.6,0.1312]
[1754562716845,2.62393233,3811.1,3810.7,0.23397088]
[1754562717016,0.002,3811.2,3810.7,0.23397088]
[1754562717217,2.62412091,3810.8,3810.7,0.23397088]
[1754562717444,1.9208,3811.1,3809.5,2.85910414]
[1754562717445,2.62420179,3810.7,3809.5,2.85910414]
[1754562717642,2.6239832,3811.0,3809.7,2.62483712]
[1754562717845,2.62404085,3811.0,3810.2,2.62450427]
[1754562718143,0.002,3811.2,3810.6,2.62421986]
[1754562718310,0.002,3811.2,3811.1,5.62391435]
[1754562718709,0.002,3811.2,3811.1,12.78131435]
[1754562718910,0.002,3811.2,3811.1,14.555989]
[1754562719344,0.002,3811.2,3811.1,5.0955433]
[1754562719512,0.002,3811.2,3811.1,0.2341433]
[1754562720545,2.6258455,3811.2,3810.8,5.277]
[1754562720716,0.002,3811.2,3810.8,5.277]
[1754562721043,0.002,3811.2,3810.9,0.2342262]
[1754562721242,0.002,3811.2,3811.0,0.2342262]
[1754562721548,0.002,3811.2,3811.1,5.85814533]
[1754562721721,0.002,3811.2,3811.1,6.32154533]
[1754562722040,0.002,3811.2,3811.1,7.71954533]
[1754562723148,0.002,3811.2,3811.1,4.63223098]
[1754562723350,0.002,3811.2,3811.1,12.51314533]
[1754562723746,0.002,3811.2,3811.1,14.49026958]
[1754562724436,0.002,3811.2,3811.1,9.87823098]
[1754562724647,0.002,3811.2,3811.1,8.48023098]
[1754562725050,0.002,3811.2,3811.1,9.87123098]
[1754562725548,0.002,3811.2,3811.1,0.23423098]
[1754562725754,0.002,3811.2,3811.1,0.23366357]
[1754562725920,2.62585127,3811.2,3811.1,5.232]
[1754562726247,0.002,3811.2,3811.1,0.23366435]
[1754562726626,0.002,3811.2,3811.1,0.23370816]
[1754562727417,3.08007661,3811.2,3810.2,2.62450024]
[1754562727613,2.62405925,3810.9,3810.3,5.4487113]
[1754562727817,2.62391435,3811.1,3810.4,0.2337113]
[1754562728014,2.62410468,3810.9,3810.6,0.1312]
[1754562728245,3.34096745,3811.1,3810.6,0.1312]
[1754562728446,0.71704836,3811.1,3810.6,0.1312]
[1754562728652,2.62399786,3811.0,3810.6,0.1312]
[1754562728838,0.1332,3811.2,3810.7,5.213]
[1754562729158,2.62653323,3807.3,3806.8,0.001]
[1754562729318,2.88918655,3807.3,3806.8,0.001]
[1754562729519,5.59976738,3807.3,3806.8,0.001]
[1754562729717,4.80998655,3807.3,3806.8,0.001]
[1754562730658,2.62660222,3807.2,3805.0,1.8614]
[1754562730821,2.62780666,3805.5,3804.7,5.443]
[1754562731139,1.9208,3806.2,3804.8,5.442]
[1754562731327,2.62755979,3805.9,3804.9,1.398]
[1754562731518,14.5,3806.6,3804.9,1.398]
[1754562731716,2.62737123,3806.1,3805.0,0.73034]
[1754562731950,1.64208,3806.5,3805.1,2.62803406]
[1754562732150,1.9208,3806.8,3805.0,0.73034]
[1754562732327,1.9208,3806.4,3804.9,1.398]
[1754562732535,2.62788281,3805.4,3805.0,5.427]
[1754562732723,1.9208,3805.8,3804.9,5.427]
[1754562732923,2.11288,3805.8,3804.9,5.427]
[1754562733158,2.62776766,3805.6,3804.9,5.427]
[1754562733370,1.9208,3806.2,3804.9,5.427]
[1754562733868,4.548104,3806.2,3805.1,2.62800621]
[1754562734067,4.548104,3806.2,3804.9,5.427]
[1754562734068,1.9208,3806.2,3804.9,5.427]
[1754562734360,1.9208,3806.1,3804.9,8.04618739]
[1754562734648,2.62687821,3806.8,3805.0,4.8614]
[1754562734649,2.62711244,3806.5,3805.0,4.8614]
[1754562734851,2.62717193,3806.4,3805.6,2.62768905]
[1754562735021,2.62699061,3806.7,3805.7,5.42]
[1754562735216,2.62687821,3806.8,3805.1,2.68876524]
[1754562735442,3.63349906,3806.6,3804.6,1.398]
[1754562735749,2.62751131,3805.9,3805.2,5.413]
[1754562736142,0.36334991,3806.5,3805.2,5.413]
[1754562736355,0.36334991,3806.5,3805.3,1.398]
[1754562736554,2.62729937,3806.2,3805.4,2.62783873]
[1754562736724,2.62729937,3806.2,3805.3,1.398]
[1754562736925,2.16689906,3806.6,3805.3,2.34189707]
[1754562737126,2.62711982,3806.5,3805.3,2.34189707]
[1754562737452,2.62706689,3806.6,3805.3,5.34189707]
[1754562737639,2.62709584,3806.5,3805.8,2.62755468]
[1754562738160,2.62687821,3806.8,3805.8,2.62755468]
[1754562738454,0.4542,3807.4,3806.0,3.0]
[1754562738660,2.62647913,3807.4,3806.6,2.62698487]
[1754562738860,2.62647913,3807.4,3806.1,1.398]
[1754562738861,2.62645966,3807.5,3806.7,8.01093267]
[1754562739159,2.62622088,3807.8,3806.5,4.02507426]
[1754562739465,2.62672207,3807.1,3806.3,8.00820585]
[1754562739770,1.9208,3807.4,3806.4,2.62715426]
[1754562739959,2.40631183,3807.4,3806.3,5.381]
[1754562740261,0.1312,3806.9,3806.3,5.5122]
[1754562740562,2.62648407,3807.4,3806.6,2.62697308]